[Event "World Junior Chess Championship U20 2022"]
[White "Stefansson, Vignir Vatnar"]
[Black "Andreev, Konstantin"]
[WhiteFideId "2308649"]
[BlackFideId "24239305"]
[WhiteElo "2471"]
[BlackElo "2206"]
[Result "1-0"]
[Round "01"]
[TimeControl "5400+30"]
[Date "2022.10.12"]
[WhiteClock "0:13:00"]
[BlackClock "0:05:00"]

1. c4 {[%clk 1:30:56]}  Nf6 {[%clk 1:30:46]} 2. Nc3 {[%clk 1:29:21]}  e5 {[%clk 1:30:54]} 3. Nf3 {[%clk 1:29:37]}  Nc6 {[%clk 1:30:47]} 4. e4 {[%clk 1:29:56]}  Bc5 {[%clk 1:21:56]} 5. Nxe5 {[%clk 1:30:12]}  Nxe5 {[%clk 1:22:22]} 6. d4 {[%clk 1:30:36]}  Bb4 {[%clk 1:22:49]} 7. dxe5 {[%clk 1:30:57]}  Nxe4 {[%clk 1:23:00]} 8. Qf3 {[%clk 1:31:16]}  Nxc3 {[%clk 1:17:44]} 9. bxc3 {[%clk 1:31:11]}  Be7 {[%clk 1:17:00]} 10. Qg3 {[%clk 1:27:40]}  Kf8 {[%clk 1:14:53]} 11. Bf4 {[%clk 1:25:18]}  g5 {[%clk 0:37:57]} 12. Be3 {[%clk 1:24:55]}  h5 {[%clk 0:35:25]} 13. Rd1 {[%clk 1:16:42]}  b6 {[%clk 0:32:24]} 14. Qf3 {[%clk 1:10:29]}  Rb8 {[%clk 0:29:42]} 15. Bd3 {[%clk 1:10:17]}  d6 {[%clk 0:27:05]} 16. Bg6 {[%clk 0:45:09]}  Qe8 {[%clk 0:26:49]} 17. Bxh5 {[%clk 0:40:54]}  dxe5 {[%clk 0:24:02]} 18. Bg4 {[%clk 0:40:31]}  Bb7 {[%clk 0:21:01]} 19. Qg3 {[%clk 0:40:31]}  Qc6 {[%clk 0:20:42]} 20. O-O {[%clk 0:36:42]}  e4 {[%clk 0:16:01]} 21. f4 {[%clk 0:33:29]}  exf3 {[%clk 0:13:49]} 22. Bxf3 {[%clk 0:33:18]}  Qxc4 {[%clk 0:13:46]} 23. Bxb7 {[%clk 0:31:21]}  Rxb7 {[%clk 0:11:59]} 24. Bxg5 {[%clk 0:30:57]}  Qc5+ {[%clk 0:10:40]} 25. Be3 {[%clk 0:31:20]}  Qh5 {[%clk 0:10:50]} 26. Rd7 {[%clk 0:22:45]}  Rg8 {[%clk 0:10:32]} 27. Qf4 {[%clk 0:21:44]}  Qg6 {[%clk 0:09:40]} 28. Qf3 {[%clk 0:21:55]}  Rb8 {[%clk 0:07:23]} 29. Rxc7 {[%clk 0:21:30]}  Rg7 {[%clk 0:06:50]} 30. Bd4 {[%clk 0:17:58]}  Rh7 {[%clk 0:06:46]} 31. Rc6 {[%clk 0:16:07]}  Qg5 {[%clk 0:05:43]} 32. Be3 {[%clk 0:13:02]}  Qh4 {[%clk 0:05:00]} 33. Rh6 {[%clk 0:13:00]} 1-0


[Site "http://www.chessbomb.com"]

[Event "World Junior Chess Championship U20 2022"]
[White "Asllani, Dorian"]
[Black "Nogerbek, Kazybek"]
[WhiteFideId "1341332"]
[BlackFideId "13710427"]
[WhiteElo "2202"]
[BlackElo "2467"]
[Result "0-1"]
[Round "01"]
[TimeControl "5400+30"]
[Date "2022.10.12"]
[WhiteClock "0:12:01"]
[BlackClock "0:58:26"]

1. d4 {[%clk 1:30:55]}  d6 {[%clk 1:30:33]} 2. c4 {[%clk 1:28:47]}  e5 {[%clk 1:30:48]} 3. d5 {[%clk 1:29:02]}  a5 {[%clk 1:29:37]} 4. e4 {[%clk 1:24:42]}  Na6 {[%clk 1:28:52]} 5. Nc3 {[%clk 1:23:51]}  g6 {[%clk 1:26:04]} 6. Bd3 {[%clk 1:17:31]}  Nc5 {[%clk 1:25:32]} 7. Bc2 {[%clk 1:16:43]}  h5 {[%clk 1:22:38]} 8. Be3 {[%clk 1:10:28]}  Bh6 {[%clk 1:21:35]} 9. Bxc5 {[%clk 1:04:58]}  dxc5 {[%clk 1:21:35]} 10. Ba4+ {[%clk 1:01:06]}  Kf8 {[%clk 1:19:58]} 11. Qd3 {[%clk 0:51:18]}  Nf6 {[%clk 1:15:57]} 12. Nf3 {[%clk 0:49:46]}  Qe7 {[%clk 1:15:53]} 13. Rd1 {[%clk 0:48:01]}  Ra6 {[%clk 1:12:50]} 14. O-O {[%clk 0:38:34]}  Kg7 {[%clk 1:11:09]} 15. Nd2 {[%clk 0:36:59]}  h4 {[%clk 1:09:15]} 16. Ne2 {[%clk 0:31:39]}  Nh5 {[%clk 1:07:06]} 17. Qc3 {[%clk 0:31:22]}  Rf6 {[%clk 1:03:31]} 18. Rde1 {[%clk 0:23:15]}  Bg4 {[%clk 0:56:44]} 19. f3 {[%clk 0:21:58]}  Bc8 {[%clk 0:56:44]} 20. Rf2 {[%clk 0:19:03]}  Nf4 {[%clk 0:54:07]} 21. Nb3 {[%clk 0:15:38]}  b6 {[%clk 0:49:44]} 22. Nbc1 {[%clk 0:15:23]}  Nxe2+ {[%clk 0:34:14]} 23. Nxe2 {[%clk 0:12:41]}  Kg8 {[%clk 0:33:47]} 24. Ref1 {[%clk 0:10:05]}  Bg7 {[%clk 0:33:20]} 25. Qd3 {[%clk 0:08:30]}  Rd6 {[%clk 0:33:33]} 26. Nc3 {[%clk 0:07:02]}  Bh6 {[%clk 0:33:01]} 27. Kh1 {[%clk 0:06:10]}  Bf4 {[%clk 0:32:46]} 28. Kg1 {[%clk 0:05:43]}  Qg5 {[%clk 0:32:25]} 29. Ne2 {[%clk 0:05:57]}  Be3 {[%clk 0:32:37]} 30. Kh1 {[%clk 0:04:34]}  Bxf2 {[%clk 0:31:59]} 31. Rxf2 {[%clk 0:04:57]}  f5 {[%clk 0:31:19]} 32. f4 {[%clk 0:03:25]}  fxe4 {[%clk 0:31:04]} 33. Qxe4 {[%clk 0:03:29]}  exf4 {[%clk 0:30:50]} 34. Rxf4 {[%clk 0:02:00]}  Bf5 {[%clk 0:30:27]} 35. Qf3 {[%clk 0:01:07]}  Kg7 {[%clk 0:30:21]} 36. Nc3 {[%clk 0:01:11]}  Qe7 {[%clk 0:29:03]} 37. h3 {[%clk 0:00:52]}  Qe1+ {[%clk 0:29:16]} 38. Kh2 {[%clk 0:01:09]}  Qe5 {[%clk 0:29:38]} 39. Kh1 {[%clk 0:01:13]}  Rf6 {[%clk 0:27:47]} 40. Qf2 {[%clk 0:00:32]}  g5 {[%clk 0:27:57]} 41. Rf3 {[%clk 0:00:42]}  Bg6 {[%clk 0:28:16]} 42. Qe3 {[%clk 0:26:16]}  Qxe3 {[%clk 0:58:14]} 43. Rxe3 {[%clk 0:26:39]}  Rhf8 {[%clk 0:58:29]} 44. Re5 {[%clk 0:21:14]}  Rf1+ {[%clk 0:58:33]} 45. Kh2 {[%clk 0:21:14]}  Rc1 {[%clk 0:58:33]} 46. Re7+ {[%clk 0:16:28]}  Rf7 {[%clk 0:58:22]} 47. Rxf7+ {[%clk 0:15:57]}  Bxf7 {[%clk 0:58:44]} 48. Bb3 {[%clk 0:15:30]}  Be8 {[%clk 0:59:01]} 49. a4 {[%clk 0:15:18]}  Kf6 {[%clk 0:59:07]} 50. g3 {[%clk 0:15:18]}  Ke5 {[%clk 0:59:15]} 51. Kg2 {[%clk 0:13:28]}  Bg6 {[%clk 0:58:37]} 52. gxh4 {[%clk 0:11:37]}  gxh4 {[%clk 0:59:06]} 53. Kf3 {[%clk 0:11:55]}  Rg1 {[%clk 0:58:22]} 54. Ne2 {[%clk 0:12:01]}  Be4+ {[%clk 0:58:26]} 0-1


[Site "http://www.chessbomb.com"]

[Event "World Junior Chess Championship U20 2022"]
[White "Kosakowski, Jakub"]
[Black "Casadio, Niccolo`"]
[WhiteFideId "1185080"]
[BlackFideId "2827951"]
[WhiteElo "2465"]
[BlackElo "2201"]
[Result "1-0"]
[Round "01"]
[TimeControl "5400+30"]
[Date "2022.10.12"]
[WhiteClock "0:48:56"]
[BlackClock "0:46:05"]

1. e4 {[%clk 1:30:49]}  e6 {[%clk 1:30:51]} 2. d4 {[%clk 1:31:06]}  d5 {[%clk 1:31:07]} 3. Bd3 {[%clk 1:31:18]}  dxe4 {[%clk 1:30:54]} 4. Bxe4 {[%clk 1:31:42]}  Nf6 {[%clk 1:31:17]} 5. Bf3 {[%clk 1:32:04]}  c5 {[%clk 1:31:33]} 6. Ne2 {[%clk 1:32:16]}  Nc6 {[%clk 1:31:32]} 7. Be3 {[%clk 1:32:34]}  cxd4 {[%clk 1:31:13]} 8. Nxd4 {[%clk 1:32:54]}  Ne5 {[%clk 1:31:36]} 9. Nc3 {[%clk 1:33:12]}  a6 {[%clk 1:31:26]} 10. Qe2 {[%clk 1:32:46]}  Nxf3+ {[%clk 1:31:05]} 11. gxf3 {[%clk 1:33:08]}  Nd5 {[%clk 1:31:17]} 12. Nxd5 {[%clk 1:33:05]}  Qxd5 {[%clk 1:31:40]} 13. O-O-O {[%clk 1:33:20]}  Qxa2 {[%clk 1:30:31]} 14. Nb3 {[%clk 1:33:39]}  Qa4 {[%clk 1:30:53]} 15. Kb1 {[%clk 1:33:50]}  Bd7 {[%clk 1:25:04]} 16. Rhg1 {[%clk 1:29:36]}  Rc8 {[%clk 1:21:17]} 17. Rg4 {[%clk 1:25:49]}  Qb5 {[%clk 1:21:30]} 18. Qd2 {[%clk 1:25:51]}  e5 {[%clk 1:14:51]} 19. Re4 {[%clk 1:22:25]}  Be6 {[%clk 1:11:45]} 20. f4 {[%clk 1:13:38]}  exf4 {[%clk 1:05:16]} 21. Bxf4 {[%clk 1:11:54]}  Be7 {[%clk 1:03:33]} 22. Nd4 {[%clk 1:04:03]}  Qd5 {[%clk 1:01:09]} 23. Nxe6 {[%clk 1:01:19]}  fxe6 {[%clk 0:59:35]} 24. Qe2 {[%clk 0:56:40]}  Qf5 {[%clk 0:58:13]} 25. Rxe6 {[%clk 0:55:24]}  O-O {[%clk 0:58:12]} 26. Rxe7 {[%clk 0:55:26]}  Qxf4 {[%clk 0:58:01]} 27. Rdd7 {[%clk 0:54:46]}  Qg5 {[%clk 0:52:15]} 28. Rxb7 {[%clk 0:51:17]}  Rc6 {[%clk 0:52:14]} 29. Re8 {[%clk 0:48:14]}  Qg1+ {[%clk 0:47:06]} 30. Ka2 {[%clk 0:48:32]}  Qxf2 {[%clk 0:46:05]} 31. Qxf2 {[%clk 0:48:56]} 1-0


[Site "http://www.chessbomb.com"]

[Event "World Junior Chess Championship U20 2022"]
[White "Tan, Jun Ying"]
[Black "Prraneeth, Vuppala"]
[WhiteFideId "5710413"]
[BlackFideId "46622373"]
[WhiteElo "2189"]
[BlackElo "2451"]
[Result "1/2-1/2"]
[Round "01"]
[TimeControl "5400+30"]
[Date "2022.10.12"]
[WhiteClock "0:03:16"]
[BlackClock "0:02:56"]

1. d4 {[%clk 1:30:46]}  Nf6 {[%clk 1:30:47]} 2. c4 {[%clk 1:31:13]}  e6 {[%clk 1:31:11]} 3. Nc3 {[%clk 1:31:41]}  Bb4 {[%clk 1:31:31]} 4. e3 {[%clk 1:32:03]}  O-O {[%clk 1:31:23]} 5. Ne2 {[%clk 1:32:08]}  c6 {[%clk 1:30:28]} 6. a3 {[%clk 1:31:33]}  Ba5 {[%clk 1:30:43]} 7. Ng3 {[%clk 1:31:51]}  d5 {[%clk 1:29:58]} 8. Bd3 {[%clk 1:31:53]}  dxc4 {[%clk 1:28:45]} 9. Bxc4 {[%clk 1:32:17]}  c5 {[%clk 1:28:43]} 10. O-O {[%clk 1:24:28]}  cxd4 {[%clk 1:28:00]} 11. exd4 {[%clk 1:24:49]}  Nc6 {[%clk 1:27:50]} 12. Be3 {[%clk 1:17:08]}  Bb6 {[%clk 1:27:21]} 13. Nge2 {[%clk 1:15:41]}  Ng4 {[%clk 1:24:39]} 14. h3 {[%clk 1:06:06]}  Nxe3 {[%clk 1:24:46]} 15. fxe3 {[%clk 1:06:34]}  Ne7 {[%clk 0:49:16]} 16. Qd3 {[%clk 1:03:45]}  Ng6 {[%clk 0:40:43]} 17. Kh1 {[%clk 0:58:42]}  Bc7 {[%clk 0:36:59]} 18. e4 {[%clk 0:53:54]}  a6 {[%clk 0:36:33]} 19. e5 {[%clk 0:47:20]}  b5 {[%clk 0:35:16]} 20. Qf3 {[%clk 0:46:54]}  Ra7 {[%clk 0:27:47]} 21. Bd3 {[%clk 0:46:24]}  Bb6 {[%clk 0:27:27]} 22. Rad1 {[%clk 0:40:06]}  Rd7 {[%clk 0:27:17]} 23. Bxg6 {[%clk 0:30:59]}  hxg6 {[%clk 0:23:25]} 24. Qg4 {[%clk 0:30:01]}  Bb7 {[%clk 0:22:45]} 25. Rf4 {[%clk 0:20:44]}  g5 {[%clk 0:08:13]} 26. Rff1 {[%clk 0:20:03]}  Qe7 {[%clk 0:07:55]} 27. Ne4 {[%clk 0:17:58]}  f5 {[%clk 0:04:02]} 28. exf6 {[%clk 0:18:17]}  gxf6 {[%clk 0:04:25]} 29. Nc5 {[%clk 0:10:42]}  f5 {[%clk 0:03:28]} 30. Qh5 {[%clk 0:10:05]}  Bxc5 {[%clk 0:02:20]} 31. Qg6+ {[%clk 0:09:11]}  Qg7 {[%clk 0:01:30]} 32. Qxg7+ {[%clk 0:04:38]}  Rxg7 {[%clk 0:01:58]} 33. dxc5 {[%clk 0:04:55]}  g4 {[%clk 0:02:25]} 34. hxg4 {[%clk 0:04:13]}  Rxg4 {[%clk 0:02:51]} 35. Nf4 {[%clk 0:03:20]}  e5 {[%clk 0:02:08]} 36. Nd5 {[%clk 0:03:28]}  Rg7 {[%clk 0:00:42]} 37. Rf2 {[%clk 0:02:59]}  f4 {[%clk 0:00:50]} 38. Rc2 {[%clk 0:01:35]}  f3 {[%clk 0:00:38]} 39. gxf3 {[%clk 0:01:21]}  Rxf3 {[%clk 0:00:56]} 40. Rg2 {[%clk 0:00:35]}  Rxg2 {[%clk 0:00:35]} 41. Kxg2 {[%clk 0:00:55]}  Rb3 {[%clk 0:28:31]} 42. Kf1 {[%clk 0:26:59]}  Bxd5 {[%clk 0:16:46]} 43. Rxd5 {[%clk 0:27:23]}  Rxb2 {[%clk 0:17:05]} 44. Rxe5 {[%clk 0:26:56]}  Kf7 {[%clk 0:13:49]} 45. Re3 {[%clk 0:15:16]}  Rc2 {[%clk 0:12:51]} 46. Ke1 {[%clk 0:14:10]}  Kf6 {[%clk 0:09:19]} 47. Rh3 {[%clk 0:11:04]}  Ke5 {[%clk 0:08:57]} 48. Rh6 {[%clk 0:08:53]}  a5 {[%clk 0:08:28]} 49. c6 {[%clk 0:06:46]}  Kd5 {[%clk 0:04:24]} 50. Rh5+ {[%clk 0:06:35]}  Kxc6 {[%clk 0:04:29]} 51. a4 {[%clk 0:06:35]}  bxa4 {[%clk 0:02:30]} 52. Rxa5 {[%clk 0:07:11]}  Rc4 {[%clk 0:02:28]} 53. Kd2 {[%clk 0:07:17]}  Kb6 {[%clk 0:02:36]} 54. Ra8 {[%clk 0:04:28]}  Kb5 {[%clk 0:02:46]} 55. Rb8+ {[%clk 0:04:24]}  Ka5 {[%clk 0:03:12]} 56. Ra8+ {[%clk 0:04:05]}  Kb4 {[%clk 0:03:37]} 57. Rb8+ {[%clk 0:04:32]}  Ka3 {[%clk 0:04:01]} 58. Rb7 {[%clk 0:04:42]}  Ka2 {[%clk 0:03:50]} 59. Rb8 {[%clk 0:05:03]}  a3 {[%clk 0:03:18]} 60. Rb7 {[%clk 0:05:03]}  Rh4 {[%clk 0:02:44]} 61. Kc2 {[%clk 0:04:54]}  Rh3 {[%clk 0:02:38]} 62. Rb8 {[%clk 0:05:07]}  Rh2+ {[%clk 0:03:03]} 63. Kc1 {[%clk 0:05:23]}  Rb2 {[%clk 0:02:42]} 64. Ra8 {[%clk 0:04:07]}  Rb7 {[%clk 0:02:52]} 65. Kc2 {[%clk 0:03:55]}  Rb6 {[%clk 0:02:56]} 66. Ra7 {[%clk 0:03:16]} 1/2-1/2


[Site "http://www.chessbomb.com"]

[Event "World Junior Chess Championship U20 2022"]
[White "Ramoutar, Alan-Safar"]
[Black "Brahami, Lamine"]
[WhiteFideId "7704224"]
[BlackFideId "7905637"]
[WhiteElo "2449"]
[BlackElo "2188"]
[Result "1-0"]
[Round "01"]
[TimeControl "5400+30"]
[Date "2022.10.12"]
[WhiteClock "0:00:38"]
[BlackClock "0:00:51"]

1. e4 {[%clk 1:30:52]}  c5 {[%clk 1:30:39]} 2. Nf3 {[%clk 1:31:08]}  d6 {[%clk 1:30:44]} 3. d4 {[%clk 1:31:26]}  cxd4 {[%clk 1:30:52]} 4. Nxd4 {[%clk 1:31:45]}  Nf6 {[%clk 1:31:12]} 5. Bb5+ {[%clk 1:32:03]}  Nbd7 {[%clk 1:29:13]} 6. Bd3 {[%clk 1:32:26]}  g6 {[%clk 1:29:09]} 7. c4 {[%clk 1:32:12]}  Bg7 {[%clk 1:26:54]} 8. O-O {[%clk 1:32:30]}  O-O {[%clk 1:26:39]} 9. Nc3 {[%clk 1:32:40]}  Ne5 {[%clk 1:23:27]} 10. Be2 {[%clk 1:26:49]}  Bd7 {[%clk 1:18:25]} 11. b3 {[%clk 1:24:43]}  Nc6 {[%clk 1:16:06]} 12. Be3 {[%clk 1:21:05]}  Qa5 {[%clk 1:13:12]} 13. Rc1 {[%clk 1:15:21]}  Rfc8 {[%clk 1:10:11]} 14. Nxc6 {[%clk 1:11:31]}  Bxc6 {[%clk 1:07:53]} 15. Qd3 {[%clk 1:06:07]}  Nd7 {[%clk 1:04:32]} 16. f3 {[%clk 0:54:54]}  a6 {[%clk 1:01:07]} 17. Rc2 {[%clk 0:52:44]}  Nc5 {[%clk 0:48:42]} 18. Qd2 {[%clk 0:52:47]}  b5 {[%clk 0:44:03]} 19. Rfc1 {[%clk 0:38:11]}  b4 {[%clk 0:27:32]} 20. Nd5 {[%clk 0:36:34]}  Bxd5 {[%clk 0:27:37]} 21. cxd5 {[%clk 0:34:54]}  Bc3 {[%clk 0:25:54]} 22. Rxc3 {[%clk 0:30:23]}  bxc3 {[%clk 0:26:18]} 23. Rxc3 {[%clk 0:30:31]}  Qb4 {[%clk 0:21:42]} 24. Qc1 {[%clk 0:22:22]}  a5 {[%clk 0:19:32]} 25. Rc4 {[%clk 0:22:03]}  Qb7 {[%clk 0:19:21]} 26. h4 {[%clk 0:17:22]}  a4 {[%clk 0:17:02]} 27. b4 {[%clk 0:17:04]}  Nd7 {[%clk 0:16:52]} 28. Rc6 {[%clk 0:12:40]}  Ne5 {[%clk 0:14:21]} 29. b5 {[%clk 0:13:06]}  Qd7 {[%clk 0:09:19]} 30. Bd4 {[%clk 0:12:33]}  a3 {[%clk 0:07:20]} 31. h5 {[%clk 0:11:27]}  Nxc6 {[%clk 0:06:11]} 32. dxc6 {[%clk 0:08:52]}  e5 {[%clk 0:05:47]} 33. Bc4 {[%clk 0:07:16]}  Qd8 {[%clk 0:04:44]} 34. Be3 {[%clk 0:05:45]}  Ra4 {[%clk 0:03:58]} 35. hxg6 {[%clk 0:03:28]}  hxg6 {[%clk 0:04:03]} 36. Bd5 {[%clk 0:00:53]}  Rb4 {[%clk 0:03:07]} 37. Bg5 {[%clk 0:00:50]}  Qb6+ {[%clk 0:02:57]} 38. Kh2 {[%clk 0:01:06]}  Qf2 {[%clk 0:02:29]} 39. Bf6 {[%clk 0:00:41]}  Kh7 {[%clk 0:00:41]} 40. Bxf7 {[%clk 0:00:45]}  Rh8 {[%clk 0:00:51]} 41. Qg5 {[%clk 0:00:38]} 1-0


[Site "http://www.chessbomb.com"]

[Event "World Junior Chess Championship U20 2022"]
[White "Stankovic, Dragan"]
[Black "Stoyanov, Tsvetan"]
[WhiteFideId "14408740"]
[BlackFideId "2917173"]
[WhiteElo "2181"]
[BlackElo "2449"]
[Result "0-1"]
[Round "01"]
[TimeControl "5400+30"]
[Date "2022.10.12"]
[WhiteClock "0:00:41"]
[BlackClock "0:00:35"]

1. e4 {[%clk 1:30:51]}  c5 {[%clk 1:30:47]} 2. Nf3 {[%clk 1:31:11]}  d6 {[%clk 1:31:04]} 3. d4 {[%clk 1:31:24]}  cxd4 {[%clk 1:31:27]} 4. Nxd4 {[%clk 1:31:47]}  Nf6 {[%clk 1:31:45]} 5. Nc3 {[%clk 1:32:06]}  a6 {[%clk 1:32:08]} 6. Be3 {[%clk 1:32:12]}  e5 {[%clk 1:32:24]} 7. Nf3 {[%clk 1:32:34]}  Be7 {[%clk 1:32:42]} 8. Bc4 {[%clk 1:32:30]}  O-O {[%clk 1:32:56]} 9. O-O {[%clk 1:31:58]}  Be6 {[%clk 1:33:20]} 10. Bxe6 {[%clk 1:24:51]}  fxe6 {[%clk 1:33:47]} 11. Na4 {[%clk 1:24:45]}  Ng4 {[%clk 1:33:57]} 12. Qd3 {[%clk 1:24:28]}  Nxe3 {[%clk 1:33:58]} 13. Qxe3 {[%clk 1:24:31]}  b5 {[%clk 1:34:16]} 14. Nc3 {[%clk 1:16:29]}  Nd7 {[%clk 1:19:43]} 15. Ne2 {[%clk 1:08:17]}  Rc8 {[%clk 1:15:06]} 16. c3 {[%clk 1:00:29]}  Nb6 {[%clk 1:02:39]} 17. b3 {[%clk 0:53:36]}  Rc6 {[%clk 1:01:44]} 18. Rad1 {[%clk 0:46:52]}  Qe8 {[%clk 1:00:17]} 19. Rd3 {[%clk 0:39:16]}  Qg6 {[%clk 0:59:05]} 20. Rfd1 {[%clk 0:36:43]}  Rfc8 {[%clk 0:50:06]} 21. Nd2 {[%clk 0:33:13]}  d5 {[%clk 0:38:44]} 22. Qg3 {[%clk 0:29:29]}  Qh5 {[%clk 0:24:52]} 23. Qf3 {[%clk 0:27:16]}  Qxf3 {[%clk 0:24:51]} 24. Rxf3 {[%clk 0:25:56]}  b4 {[%clk 0:24:19]} 25. Nb1 {[%clk 0:15:14]}  dxe4 {[%clk 0:17:53]} 26. Rh3 {[%clk 0:14:35]}  bxc3 {[%clk 0:17:22]} 27. Rxc3 {[%clk 0:10:52]}  Bc5 {[%clk 0:08:41]} 28. Rdc1 {[%clk 0:04:42]}  Nd5 {[%clk 0:09:06]} 29. Rc4 {[%clk 0:04:37]}  e3 {[%clk 0:09:25]} 30. f3 {[%clk 0:04:23]}  Nf4 {[%clk 0:09:22]} 31. Kf1 {[%clk 0:04:25]}  Nd3 {[%clk 0:09:38]} 32. R1c3 {[%clk 0:01:02]}  Rd8 {[%clk 0:06:45]} 33. g3 {[%clk 0:00:42]}  Rcd6 {[%clk 0:04:58]} 34. Kg2 {[%clk 0:00:34]}  Bb6 {[%clk 0:04:23]} 35. Kh3 {[%clk 0:00:37]}  Ne1 {[%clk 0:00:38]} 36. f4 {[%clk 0:00:39]}  Rd2 {[%clk 0:00:52]} 37. Ng1 {[%clk 0:00:35]}  Rxa2 {[%clk 0:00:43]} 38. fxe5 {[%clk 0:00:41]}  e2 {[%clk 0:00:35]} 0-1


[Site "http://www.chessbomb.com"]

[Event "World Junior Chess Championship U20 2022"]
[White "Neelash, Saha"]
[Black "Hercegovac, Neven"]
[WhiteFideId "5094160"]
[BlackFideId "2839135"]
[WhiteElo "2446"]
[BlackElo "2175"]
[Result "1-0"]
[Round "01"]
[TimeControl "5400+30"]
[Date "2022.10.12"]
[WhiteClock "1:29:58"]
[BlackClock "0:34:00"]

1. d4 {[%clk 1:30:46]}  Nf6 {[%clk 1:30:50]} 2. c4 {[%clk 1:31:04]}  c5 {[%clk 1:31:15]} 3. d5 {[%clk 1:31:29]}  b5 {[%clk 1:31:40]} 4. cxb5 {[%clk 1:31:55]}  a6 {[%clk 1:32:06]} 5. bxa6 {[%clk 1:32:21]}  g6 {[%clk 1:32:31]} 6. Nc3 {[%clk 1:32:48]}  Bg7 {[%clk 1:32:55]} 7. e4 {[%clk 1:33:14]}  O-O {[%clk 1:33:20]} 8. Bc4 {[%clk 1:33:12]}  Qa5 {[%clk 1:32:34]} 9. a7 {[%clk 1:33:36]}  Nxe4 {[%clk 1:25:02]} 10. axb8=Q {[%clk 1:33:58]}  Rxb8 {[%clk 1:25:26]} 11. Ne2 {[%clk 1:34:04]}  Nxc3 {[%clk 1:13:21]} 12. bxc3 {[%clk 1:34:27]}  Bxc3+ {[%clk 1:12:21]} 13. Bd2 {[%clk 1:34:50]}  Bxd2+ {[%clk 1:02:44]} 14. Qxd2 {[%clk 1:35:15]}  Qb4 {[%clk 0:54:39]} 15. Qxb4 {[%clk 1:34:14]}  Rxb4 {[%clk 0:54:02]} 16. Rc1 {[%clk 1:34:39]}  e6 {[%clk 0:50:57]} 17. Nf4 {[%clk 1:30:48]}  Ra4 {[%clk 0:45:18]} 18. O-O {[%clk 1:29:07]}  Bb7 {[%clk 0:43:00]} 19. dxe6 {[%clk 1:29:07]}  fxe6 {[%clk 0:43:18]} 20. Nd3 {[%clk 1:29:34]}  Ra5 {[%clk 0:37:21]} 21. Nxc5 {[%clk 1:28:19]}  d5 {[%clk 0:32:44]} 22. Nxb7 {[%clk 1:28:36]}  Ra7 {[%clk 0:33:02]} 23. Nc5 {[%clk 1:28:32]}  dxc4 {[%clk 0:33:21]} 24. Rxc4 {[%clk 1:28:51]}  Rxa2 {[%clk 0:33:34]} 25. Nxe6 {[%clk 1:29:12]}  Re8 {[%clk 0:33:51]} 26. Re4 {[%clk 1:29:11]}  Ra6 {[%clk 0:33:39]} 27. Nc5 {[%clk 1:29:33]}  Rxe4 {[%clk 0:34:00]} 28. Nxe4 {[%clk 1:29:58]} 1-0


[Site "http://www.chessbomb.com"]

[Event "World Junior Chess Championship U20 2022"]
[White "Johannsson, Birkir Isak"]
[Black "Boyer, Mahel"]
[WhiteFideId "2314673"]
[BlackFideId "45102422"]
[WhiteElo "2165"]
[BlackElo "2445"]
[Result "1/2-1/2"]
[Round "01"]
[TimeControl "5400+30"]
[Date "2022.10.12"]
[WhiteClock "0:32:08"]
[BlackClock "0:10:52"]

1. c4 {[%clk 1:30:56]}  c6 {[%clk 1:29:19]} 2. Nf3 {[%clk 1:30:32]}  d5 {[%clk 1:29:08]} 3. d4 {[%clk 1:30:22]}  Nf6 {[%clk 1:29:10]} 4. g3 {[%clk 1:30:45]}  dxc4 {[%clk 1:24:08]} 5. Bg2 {[%clk 1:30:44]}  g6 {[%clk 1:23:56]} 6. a4 {[%clk 1:28:54]}  Bg7 {[%clk 1:22:55]} 7. Na3 {[%clk 1:26:34]}  Be6 {[%clk 1:18:15]} 8. Ng5 {[%clk 1:24:23]}  Bf5 {[%clk 1:15:32]} 9. Nxc4 {[%clk 1:18:45]}  h6 {[%clk 1:14:35]} 10. Nf3 {[%clk 1:17:06]}  O-O {[%clk 1:09:37]} 11. O-O {[%clk 1:14:56]}  Be4 {[%clk 1:09:00]} 12. b3 {[%clk 1:11:26]}  c5 {[%clk 0:59:17]} 13. Bb2 {[%clk 1:07:37]}  Na6 {[%clk 0:51:30]} 14. Rc1 {[%clk 1:03:37]}  Rc8 {[%clk 0:50:31]} 15. Qd2 {[%clk 1:00:33]}  Qd5 {[%clk 0:46:51]} 16. Rfd1 {[%clk 0:53:45]}  Rfd8 {[%clk 0:45:22]} 17. Bh3 {[%clk 0:51:20]}  Qh5 {[%clk 0:01:12]} 18. Bxc8 {[%clk 0:47:31]}  Rxc8 {[%clk 0:01:41]} 19. Nce5 {[%clk 0:45:38]}  Bd5 {[%clk 0:00:54]} 20. Qe3 {[%clk 0:44:03]}  b6 {[%clk 0:00:45]} 21. Ba3 {[%clk 0:39:28]}  Rb8 {[%clk 0:00:31]} 22. h4 {[%clk 0:37:27]}  Qf5 {[%clk 0:00:31]} 23. Qd3 {[%clk 0:36:40]}  Qxd3 {[%clk 0:00:31]} 24. Rxd3 {[%clk 0:36:54]}  Nb4 {[%clk 0:00:31]} 25. Bxb4 {[%clk 0:36:05]}  cxb4 {[%clk 0:01:00]} 26. Nc6 {[%clk 0:31:51]}  Bxc6 {[%clk 0:00:31]} 27. Rxc6 {[%clk 0:32:16]}  a5 {[%clk 0:00:32]} 28. Ne5 {[%clk 0:31:06]}  Nd5 {[%clk 0:00:37]} 29. Nc4 {[%clk 0:26:38]}  Nc3 {[%clk 0:00:31]} 30. Rxb6 {[%clk 0:24:30]}  Rxb6 {[%clk 0:00:31]} 31. Nxb6 {[%clk 0:24:51]}  Nxe2+ {[%clk 0:00:36]} 32. Kf1 {[%clk 0:23:44]}  Nc1 {[%clk 0:00:32]} 33. Rf3 {[%clk 0:23:49]}  Bxd4 {[%clk 0:00:54]} 34. Nc4 {[%clk 0:23:29]}  e5 {[%clk 0:01:06]} 35. g4 {[%clk 0:13:38]}  e4 {[%clk 0:00:55]} 36. Rf4 {[%clk 0:12:30]}  Nxb3 {[%clk 0:00:45]} 37. Rxe4 {[%clk 0:12:49]}  Kf8 {[%clk 0:00:34]} 38. Kg2 {[%clk 0:12:03]}  Bc3 {[%clk 0:00:31]} 39. Re3 {[%clk 0:10:00]}  Nc5 {[%clk 0:00:36]} 40. Nxa5 {[%clk 0:10:12]}  Nxa4 {[%clk 0:00:36]} 41. Nb3 {[%clk 0:09:21]}  Nb6 {[%clk 0:28:39]} 42. Kf3 {[%clk 0:38:16]}  Nc4 {[%clk 0:24:36]} 43. Re2 {[%clk 0:37:56]}  Ne5+ {[%clk 0:21:16]} 44. Kf4 {[%clk 0:36:41]}  Nc4 {[%clk 0:15:15]} 45. Ke4 {[%clk 0:36:26]}  Bf6 {[%clk 0:13:45]} 46. h5 {[%clk 0:35:58]}  gxh5 {[%clk 0:13:07]} 47. gxh5 {[%clk 0:36:26]}  Nd6+ {[%clk 0:12:59]} 48. Kd5 {[%clk 0:34:48]}  Nf5 {[%clk 0:13:25]} 49. Kc4 {[%clk 0:34:42]}  Bc3 {[%clk 0:12:36]} 50. Ra2 {[%clk 0:34:44]}  Kg7 {[%clk 0:11:57]} 51. Nc5 {[%clk 0:33:22]}  Nd6+ {[%clk 0:11:57]} 52. Kd5 {[%clk 0:33:15]}  Ne8 {[%clk 0:10:54]} 53. Kc4 {[%clk 0:32:08]}  Nf6 {[%clk 0:10:52]} 1/2-1/2


[Site "http://www.chessbomb.com"]